[Event "ESP chT Honor Division 2019"]
[Site "Melilla"]
[Date "2019.10.05"]
[Round "6.11"]
[White "Gonzalez De La Torre, Santiago"]
[Black "Martin Duque, Jesus"]
[Result "1-0"]
[ECO "B32"]
[WhiteElo "2423"]
[BlackElo "2445"]
[Annotator "ChessBase"]
[PlyCount "94"]
[EventDate "2019.09.30"]
[EventType "team-tourn"]
[EventCountry "ESP"]
[SourceTitle "playchess.com"]
[Source "ChessBase"]
[SourceQuality "1"]
[TimeControl "40/5400+30:1800+30"]

1. e4 {[%emt 0:00:00]} c5 {[%emt 0:00:00]} 2. Nf3 {[%emt 0:00:00]} Nc6 {[%emt 0:00:00]} 3. d4 {[%emt 0:00:22]} cxd4 {[%emt 0:00:00]} 4. Nxd4 {[%emt 0:00:00]} Qb6 {[%emt 0:00:00]} 5. Nb3 {[%emt 0:00:07]} Nf6 {[%emt 0:00:00]} 6. Nc3 {[%emt 0:00:09]} e6 {[%emt 0:00:26]} 7. a3 {[%emt 0:01:23]} Be7 {[%emt 0:17:19]} 8. Bf4 {[%emt 0:00:13]} O-O {[%emt 0:10:46]} 9. Bd6 {[%emt 0:06:13]} e5 {[%emt 0:06:02]} 10. Bc4 {[%emt 0:14:02]} a5 {[%emt 0:09:11]} 11. O-O a4 12. Bxe7 {[%emt 0:06:15]} Nxe7 {[%emt 0:00:37]} 13. Nd2 {[%emt 0:01:59]} Rd8 {[%emt 0:12:32]} 14. Nf3 {[%emt 0:07:05]} Ra5 {[%emt 0:14:19]} 15. Qd3 {[%emt 0:00:55]} h6 {[%emt 0:02:45]} 16. Rad1 {[%emt 0:34:41]} d6 {[%emt 0:09:06]} 17. Nb5 {[%emt 0:00:09]} d5 {[%emt 0:00:16]} 18. Nxe5 {[%emt 0:07:40]} Re8 {[%emt 0:00:13]} 19. exd5 {[%emt 0:03:57]} Bf5 20. Qe3 Rxb5 {[%emt 0:01:24]} 21. Qxb6 {[%emt 0:00:37]} Rxb6 {[%emt 0:07:07]} 22. d6 {[%emt 0:00:00]} Ned5 {[%emt 0:00:30]} 23. d7 {[%emt 0:00:15]} Nxd7 {[%emt 0:00:03]} 24. Nxd7 {[%emt 0:00:57]} Bxd7 25. Rxd5 {[%emt 0:00:10]} Bc6 {[%emt 0:00:50]} 26. Rf5 {[%emt 0:00:22]} Re7 {[%emt 0:04:00]} 27. b4 {[%emt 0:00:27]} Be4 28. Re1 {[%emt 0:00:08]} Bxf5 {[%emt 0:02:18]} 29. Rxe7 {[%emt 0:01:31]} Bxc2 {[%emt 0:00:17]} 30. Rxf7 {[%emt 0:00:30]} Kh7 {[%emt 0:00:30]} 31. h3 {[%emt 0:01:59]} Bg6 {[%emt 0:02:27]} 32. Rf8 {[%emt 0:00:28]} h5 33. f4 {[%emt 0:01:34]} Be4 {[%emt 0:00:55]} 34. f5 {[%emt 0:01:33]} Rf6 {[%emt 0:01:23]} 35. Bg8+ {[%emt 0:00:30]} Kh6 {[%emt 0:00:30]} 36. Rxf6+ {[%emt 0:00:06]} gxf6 {[%emt 0:00:05]} 37. Be6 {[%emt 0:00:05]} Kg7 {[%emt 0:00:34]} 38. Kf2 {[%emt 0:00:06]} Kf8 {[%emt 0:00:16]} 39. g3 {[%emt 0:00:09]} Ke7 {[%emt 0:00:13]} 40. Ke3 {[%emt 0:00:07]} Bc2 41. Kf4 {[%emt 0:33:15]} Kd6 {[%emt 0:05:11]} 42. g4 {[%emt 0:00:00]} hxg4 {[%emt 0:01:02]} 43. h4 {[%emt 0:00:00]} Ke7 {[%emt 0:01:02]} 44. h5 {[%emt 0:00:00]} Kf8 {[%emt 0:00:01]} 45. Kxg4 {[%emt 0:00:00]} Bd1+ {[%emt 0:02:02]} 46. Kf4 {[%emt 0:00:00]} Bc2 {[%emt 0:00:30]} 47. Ke3 {[%emt 0:00:00]} Bd1 {[%emt 0:00:12]} 1-0

[Event "ESP chT Honor Division 2019"]
[Site "Melilla"]
[Date "2019.10.05"]
[Round "6.13"]
[White "Rakhmanov, Aleksandr"]
[Black "Cheparinov, Ivan"]
[Result "1/2-1/2"]
[ECO "D78"]
[WhiteElo "2621"]
[BlackElo "2670"]
[Annotator "RC"]
[PlyCount "65"]
[EventDate "2019.09.30"]
[EventType "team-tourn"]
[EventCountry "ESP"]
[SourceTitle "playchess.com"]
[Source "ChessBase"]
[SourceQuality "1"]
[TimeControl "40/5400+30:1800+30"]

1. d4 {[%emt 0:00:00]} Nf6 {[%emt 0:00:00]} 2. Nf3 {[%emt 0:00:00]} g6 {[%emt 0:00:00]} 3. g3 {[%emt 0:00:00]} Bg7 {[%emt 0:00:00]} 4. Bg2 {[%emt 0:00:00]} O-O {[%emt 0:00:00]} 5. O-O {[%emt 0:00:06]} d5 {[%emt 0:00:00]} 6. c4 {[%emt 0:00:19]} c6 {[%emt 0:00:00]} 7. Qa4 {[%emt 0:00:51]} Nbd7 {[%emt 0:01:32]} 8. cxd5 {[%emt 0:02:43]} Nb6 {[%emt 0:00:08]} 9. Qb3 {[%emt 0:00:19]} Qxd5 {[%emt 0:00:08]} 10. Qxd5 {[%emt 0:00:59]} Nbxd5 {[%emt 0:02:36]} 11. Nbd2 {[%emt 0:00:33]} a5 {[%emt 0:06:08]} 12. Nc4 {[%emt 0:02:04]} a4 {[%emt 0:00:31]} 13. Rd1 {[%emt 0:01:29]} Bf5 {[%emt 0:10:52]} 14. Bd2 {[%emt 0:01:18]} Ne4 {[%emt 0:00:52]} 15. Be1 {[%emt 0:01:07]} Nd6 {[%emt 0:01:22]} 16. Nfe5 {[%emt 0:04:10]} Be6 {[%emt 0:14:31]} 17. Rac1 {[%emt 0:03:39]} Nc7 {[%emt 0:06:12]} 18. a3 {[%emt 0:03:57]} f6 {[%emt 0:02:40]} 19. Nxd6 {[%emt 0:01:53]} exd6 {[%emt 0:00:02]} 20. Nc4 {[%emt 0:01:48]} d5 {[%emt 0:00:07]} 21. Ne3 {[%emt 0:06:06]} Rfe8 {[%emt 0:00:53]} 22. Bb4 {[%emt 0:00:57]} Bh6 {[%emt 0:01:56]} 23. Bd2 {[%emt 0:00:28]} Bf8 {[%emt 0:00:43]} 24. Nc2 Bg4 {[%emt 0:02:39]} 25. f3 {[%emt 0:01:14]} Bf5 {[%emt 0:00:03]} 26. Bf1 Nb5 {[%emt 0:03:51]} 27. e3 {[%emt 0:03:25]} Nd6 28. Kf2 h5 {[%emt 0:09:51]} 29. Bb4 {[%emt 0:04:00]} Nf7 {[%emt 0:05:48]} 30. Bd2 {[%emt 0:03:12]} Nd6 {[%emt 0:01:31]} 31. Bb4 {[%emt 0:00:07]} Nf7 {[%emt 0:00:44]} 32. h3 {[%emt 0:07:22]} g5 {[%emt 0:05:18]} 33. g4 {[%emt 0:00:58]} 1/2-1/2

[Event "ESP chT Honor Division 2019"]
[Site "Melilla"]
[Date "2019.10.05"]
[Round "6.14"]
[White "Predke, Alexandr"]
[Black "Peralta, Fernando"]
[Result "1-0"]
[ECO "E01"]
[WhiteElo "2657"]
[BlackElo "2569"]
[Annotator "ChessBase"]
[PlyCount "41"]
[EventDate "2019.09.30"]
[EventType "team-tourn"]
[EventCountry "ESP"]
[SourceTitle "playchess.com"]
[Source "ChessBase"]
[SourceQuality "1"]
[TimeControl "40/5400+30:1800+30"]

1. d4 Nf6 {[%emt 0:00:00]} 2. c4 e6 {[%emt 0:00:00]} 3. g3 {[%emt 0:01:02]} d5 {[%emt 0:00:42]} 4. Bg2 {[%emt 0:00:08]} Bb4+ {[%emt 0:00:13]} 5. Nd2 {[%emt 0:00:07]} O-O {[%emt 0:00:16]} 6. Ngf3 {[%emt 0:00:07]} b6 {[%emt 0:00:20]} 7. O-O {[%emt 0:00:20]} Bb7 {[%emt 0:00:07]} 8. b3 {[%emt 0:00:20]} Nbd7 {[%emt 0:01:00]} 9. Bb2 {[%emt 0:00:10]} Rc8 {[%emt 0:01:12]} 10. e3 {[%emt 0:02:42]} Bd6 {[%emt 0:17:55]} 11. Ne5 {[%emt 0:08:15]} Qe7 {[%emt 0:11:44]} 12. cxd5 {[%emt 0:01:58]} exd5 {[%emt 0:01:11]} 13. Ndc4 {[%emt 0:06:08]} Ba6 {[%emt 0:07:33]} 14. Nxd6 {[%emt 0:00:35]} cxd6 {[%emt 0:00:13]} 15. Nd3 {[%emt 0:00:48]} Qe6 {[%emt 0:09:17]} 16. Nf4 {[%emt 0:05:54]} Qf5 {[%emt 0:00:59]} 17. Qb1 {[%emt 0:00:05]} Qxb1 {[%emt 0:28:08]} 18. Rfxb1 {[%emt 0:00:06]} Rc2 {[%emt 0:00:35]} 19. Ba3 {[%emt 0:06:31]} Rfc8 {[%emt 0:01:27]} 20. Bh3 {[%emt 0:03:53]} g5 {[%emt 0:12:31]} 21. Bxd7 {[%emt 0:00:38]} 1-0

[Event "ESP chT Honor Division 2019"]
[Site "Melilla"]
[Date "2019.10.05"]
[Round "6.15"]
[White "Korneev, Oleg"]
[Black "Santos Latasa, Jaime"]
[Result "1/2-1/2"]
[ECO "C50"]
[WhiteElo "2504"]
[BlackElo "2580"]
[Annotator "ChessBase"]
[PlyCount "90"]
[EventDate "2019.09.30"]
[EventType "team-tourn"]
[EventCountry "ESP"]
[SourceTitle "playchess.com"]
[Source "ChessBase"]
[SourceQuality "1"]
[TimeControl "40/5400+30:1800+30"]

1. e4 {[%emt 0:00:00]} e5 {[%emt 0:00:00]} 2. Nf3 {[%emt 0:00:00]} Nc6 {[%emt 0:00:05]} 3. Bc4 {[%emt 0:00:03]} Bc5 {[%emt 0:00:06]} 4. O-O {[%emt 0:00:04]} Nf6 {[%emt 0:00:05]} 5. d3 {[%emt 0:00:02]} d6 {[%emt 0:00:09]} 6. c3 {[%emt 0:00:04]} h6 {[%emt 0:00:16]} 7. Nbd2 {[%emt 0:00:53]} O-O {[%emt 0:00:14]} 8. h3 {[%emt 0:00:59]} a5 {[%emt 0:00:59]} 9. Re1 {[%emt 0:05:19]} Be6 {[%emt 0:01:00]} 10. Bb5 {[%emt 0:04:05]} Qb8 {[%emt 0:00:57]} 11. Nf1 {[%emt 0:00:07]} Qa7 {[%emt 0:00:21]} 12. Be3 {[%emt 0:02:58]} Bxe3 {[%emt 0:01:39]} 13. Nxe3 {[%emt 0:01:57]} Qb6 {[%emt 0:01:36]} 14. a4 {[%emt 0:15:24]} Ne7 {[%emt 0:01:57]} 15. Bc4 {[%emt 0:05:54]} Bxc4 {[%emt 0:01:54]} 16. Nxc4 {[%emt 0:00:26]} Qa6 {[%emt 0:00:06]} 17. b3 {[%emt 0:18:58]} Ng6 {[%emt 0:03:37]} 18. Qc2 {[%emt 0:03:11]} Rfe8 {[%emt 0:02:57]} 19. d4 {[%emt 0:09:39]} exd4 {[%emt 0:07:55]} 20. Nxd4 {[%emt 0:00:30]} Ne5 {[%emt 0:05:41]} 21. Nxe5 {[%emt 0:01:51]} dxe5 {[%emt 0:02:04]} 22. Nf5 {[%emt 0:02:02]} Rad8 {[%emt 0:03:59]} 23. Rad1 {[%emt 0:00:12]} Qe6 {[%emt 0:00:42]} 24. c4 {[%emt 0:07:49]} c5 {[%emt 0:04:26]} 25. Rxd8 {[%emt 0:06:38]} Rxd8 {[%emt 0:00:12]} 26. Rd1 {[%emt 0:00:02]} Rxd1+ {[%emt 0:04:28]} 27. Qxd1 {[%emt 0:00:02]} Kh7 {[%emt 0:00:27]} 28. f3 {[%emt 0:01:54]} g6 {[%emt 0:00:42]} 29. Ne3 {[%emt 0:00:22]} Qe7 {[%emt 0:02:42]} 30. Nd5 {[%emt 0:01:57]} Qd6 {[%emt 0:00:18]} 31. Qd2 {[%emt 0:05:40]} b6 {[%emt 0:00:47]} 32. g4 {[%emt 0:01:58]} g5 {[%emt 0:09:55]} 33. Qh2 {[%emt 0:01:43]} Kg7 {[%emt 0:03:46]} 34. h4 {[%emt 0:00:18]} Nxd5 {[%emt 0:00:31]} 35. cxd5 {[%emt 0:03:28]} Qf6 {[%emt 0:00:18]} 36. hxg5 {[%emt 0:00:48]} Qxg5 {[%emt 0:00:29]} 37. Qe2 {[%emt 0:00:35]} h5 {[%emt 0:01:19]} 38. Kf2 {[%emt 0:00:33]} hxg4 {[%emt 0:00:49]} 39. fxg4 {[%emt 0:00:04]} Kf8 {[%emt 0:00:24]} 40. Qf3 {[%emt 0:00:52]} Qd2+ {[%emt 0:00:33]} 41. Kg3 {[%emt 0:30:19]} Ke7 {[%emt 0:30:08]} 42. Qf5 {[%emt 0:00:00]} Qe1+ {[%emt 0:00:00]} 43. Kg2 {[%emt 0:00:00]} Qe2+ {[%emt 0:00:00]} 44. Kg3 {[%emt 0:00:00]} Qe1+ {[%emt 0:00:00]} 45. Kg2 {[%emt 0:00:00]} Qe2+ {[%emt 0:00:00]} 1/2-1/2

[Event "ESP chT Honor Division 2019"]
[Site "Melilla"]
[Date "2019.10.05"]
[Round "6.16"]
[White "Perez Candelario, Manuel"]
[Black "Asis Gargatagli, Hipolito"]
[Result "1-0"]
[ECO "B90"]
[WhiteElo "2621"]
[BlackElo "2511"]
[Annotator "ChessBase"]
[PlyCount "55"]
[EventDate "2019.09.30"]
[EventType "team-tourn"]
[EventCountry "ESP"]
[SourceTitle "playchess.com"]
[Source "ChessBase"]
[SourceQuality "1"]
[TimeControl "40/5400+30:1800+30"]

1. e4 {[%emt 0:00:00]} c5 {[%emt 0:00:00]} 2. Nf3 {[%emt 0:00:00]} d6 {[%emt 0:00:00]} 3. d4 {[%emt 0:00:00]} cxd4 {[%emt 0:00:00]} 4. Nxd4 {[%emt 0:00:00]} Nf6 {[%emt 0:00:00]} 5. Nc3 {[%emt 0:00:00]} a6 {[%emt 0:00:00]} 6. h4 {[%emt 0:00:00]} h6 {[%emt 0:08:44]} 7. Bc4 {[%emt 0:00:34]} e6 {[%emt 0:03:29]} 8. Be3 {[%emt 0:00:28]} b5 {[%emt 0:01:39]} 9. Bb3 {[%emt 0:00:04]} Bb7 {[%emt 0:00:17]} 10. Qe2 {[%emt 0:09:29]} Nbd7 {[%emt 0:02:42]} 11. Nxe6 {[%emt 0:14:40]} fxe6 {[%emt 0:03:57]} 12. Bxe6 {[%emt 0:00:04]} Qa5 {[%emt 0:22:42]} 13. O-O {[%emt 0:03:07]} O-O-O {[%emt 0:00:53]} 14. Nd5 {[%emt 0:11:08]} Nxd5 {[%emt 0:04:36]} 15. exd5 {[%emt 0:00:05]} Kb8 {[%emt 0:05:47]} 16. Qg4 {[%emt 0:06:08]} Ne5 {[%emt 0:04:56]} 17. Qd4 {[%emt 0:04:36]} Nc4 {[%emt 0:06:25]} 18. a4 {[%emt 0:26:58]} Nxe3 {[%emt 0:25:10]} 19. fxe3 {[%emt 0:00:04]} Be7 {[%emt 0:00:49]} 20. Qxg7 {[%emt 0:02:03]} Bxh4 {[%emt 0:01:41]} 21. axb5 {[%emt 0:02:15]} Qxb5 {[%emt 0:05:39]} 22. Ra3 {[%emt 0:02:24]} Bxd5 {[%emt 0:00:19]} 23. Bxd5 {[%emt 0:06:16]} Qxd5 {[%emt 0:00:05]} 24. Rb3+ {[%emt 0:00:29]} Ka8 {[%emt 0:00:32]} 25. Ra1 {[%emt 0:02:30]} Qc6 {[%emt 0:01:14]} 26. Qd4 {[%emt 0:03:22]} Rhg8 {[%emt 0:00:52]} 27. Qd5 {[%emt 0:00:53]} Qxd5 {[%emt 0:00:17]} 28. Rxa6# 1-0

[Event "ESP chT Honor Division 2019"]
[Site "Melilla"]
[Date "2019.10.05"]
[Round "6.17"]
[White "Moskalenko, Viktor"]
[Black "Moreno Tejera, Emilio"]
[Result "1/2-1/2"]
[ECO "A45"]
[WhiteElo "2475"]
[BlackElo "2427"]
[Annotator "ChessBase"]
[PlyCount "74"]
[EventDate "2019.09.30"]
[EventType "team-tourn"]
[EventCountry "ESP"]
[SourceTitle "playchess.com"]
[Source "ChessBase"]
[SourceQuality "1"]
[TimeControl "40/5400+30:1800+30"]

1. d4 {[%emt 0:00:00]} Nf6 {[%emt 0:00:00]} 2. Bg5 {[%emt 0:03:52]} e6 {[%emt 0:00:12]} 3. e4 {[%emt 0:03:54]} h6 {[%emt 0:00:40]} 4. Bxf6 {[%emt 0:00:06]} Qxf6 {[%emt 0:00:07]} 5. Nc3 {[%emt 0:01:10]} d6 {[%emt 0:05:29]} 6. Qd2 {[%emt 0:03:37]} a6 {[%emt 0:06:17]} 7. g3 {[%emt 0:03:27]} Nd7 {[%emt 0:07:44]} 8. f4 {[%emt 0:10:21]} Qd8 {[%emt 0:18:14]} 9. Bg2 {[%emt 0:12:56]} c5 {[%emt 0:06:58]} 10. d5 {[%emt 0:04:37]} e5 {[%emt 0:09:21]} 11. Nf3 {[%emt 0:05:25]} Qe7 {[%emt 0:13:05]} 12. O-O {[%emt 0:14:53]} g6 {[%emt 0:01:16]} 13. fxe5 {[%emt 0:00:47]} Nxe5 {[%emt 0:02:20]} 14. Nxe5 {[%emt 0:00:07]} Qxe5 {[%emt 0:01:14]} 15. Qf2 {[%emt 0:00:06]} Qd4 {[%emt 0:02:11]} 16. Qxd4 {[%emt 0:00:23]} cxd4 {[%emt 0:00:05]} 17. Ne2 {[%emt 0:00:04]} Bg7 {[%emt 0:00:26]} 18. Rad1 {[%emt 0:00:04]} Bg4 {[%emt 0:05:17]} 19. Bf3 {[%emt 0:00:07]} Bxf3 {[%emt 0:03:08]} 20. Rxf3 {[%emt 0:00:02]} Rc8 {[%emt 0:00:12]} 21. Nxd4 {[%emt 0:01:25]} Bxd4+ {[%emt 0:00:43]} 22. Rxd4 {[%emt 0:00:03]} Rxc2 {[%emt 0:00:12]} 23. Rb4 {[%emt 0:04:09]} b5 {[%emt 0:07:17]} 24. Ra3 {[%emt 0:14:39]} Ke7 {[%emt 0:05:28]} 25. Rxa6 {[%emt 0:00:18]} Rhc8 {[%emt 0:00:19]} 26. Rxb5 {[%emt 0:05:11]} Rc1+ {[%emt 0:00:28]} 27. Kf2 {[%emt 0:00:19]} R8c2+ {[%emt 0:00:04]} 28. Ke3 {[%emt 0:00:32]} Re1+ {[%emt 0:00:41]} 29. Kf3 {[%emt 0:05:46]} Rf1+ {[%emt 0:01:08]} 30. Ke3 {[%emt 0:01:04]} Re1+ {[%emt 0:00:04]} 31. Kd3 {[%emt 0:00:15]} Ree2 {[%emt 0:00:32]} 32. b3 {[%emt 0:01:41]} Red2+ {[%emt 0:02:47]} 33. Ke3 {[%emt 0:00:11]} Re2+ {[%emt 0:00:06]} 34. Kf3 {[%emt 0:01:00]} Rf2+ {[%emt 0:00:04]} 35. Ke3 {[%emt 0:01:54]} Rfe2+ {[%emt 0:00:05]} 36. Kd3 {[%emt 0:01:36]} Red2+ {[%emt 0:00:16]} 37. Ke3 {[%emt 0:00:03]} Re2+ 1/2-1/2

[Event "ESP chT Honor Division 2019"]
[Site "Melilla"]
[Date "2019.10.05"]
[Round "6.18"]
[White "Bivol, Alina"]
[Black "Milliet, Sophie"]
[Result "1/2-1/2"]
[ECO "A20"]
[WhiteElo "2371"]
[BlackElo "2400"]
[Annotator "NA"]
[PlyCount "74"]
[EventDate "2019.09.30"]
[EventType "team-tourn"]
[EventCountry "ESP"]
[SourceTitle "playchess.com"]
[Source "ChessBase"]
[SourceQuality "1"]
[TimeControl "40/5400+30:1800+30"]

1. c4 {[%emt 0:00:00]} e5 {[%emt 0:00:00]} 2. g3 {[%emt 0:00:00]} c6 {[%emt 0:00:00]} 3. Bg2 {[%emt 0:03:13]} d5 {[%emt 0:00:00]} 4. cxd5 {[%emt 0:04:27]} cxd5 {[%emt 0:00:03]} 5. d3 {[%emt 0:04:21]} Nc6 {[%emt 0:19:18]} 6. Nf3 {[%emt 0:00:37]} Nf6 {[%emt 0:01:26]} 7. O-O {[%emt 0:05:01]} Be7 {[%emt 0:00:07]} 8. Nbd2 {[%emt 0:05:16]} O-O {[%emt 0:01:15]} 9. e4 {[%emt 0:01:17]} d4 {[%emt 0:08:32]} 10. Nc4 $15 {[%emt 0:01:00]} Nd7 {[%emt 0:02:29]} 11. a4 {[%emt 0:00:25]} f6 {[%emt 0:00:49]} 12. Ne1 {[%emt 0:02:29]} Nc5 {[%emt 0:02:27]} 13. Bd2 {[%emt 0:01:16]} Be6 {[%emt 0:03:45]} 14. Qc2 {[%emt 0:00:22]} Na6 {[%emt 0:03:25]} 15. f4 {[%emt 0:01:51]} Nab4 {[%emt 0:00:49]} 16. Bxb4 {[%emt 0:00:30]} Nxb4 {[%emt 0:00:41]} 17. Qd2 {[%emt 0:00:15]} Bxc4 {[%emt 0:19:44]} 18. dxc4 {[%emt 0:00:06]} d3 {[%emt 0:00:32]} 19. Rd1 {[%emt 0:04:46]} Qd4+ {[%emt 0:02:28]} 20. Kh1 {[%emt 0:00:41]} Qxc4 {[%emt 0:00:35]} 21. Qc3 {[%emt 0:07:18]} Rac8 {[%emt 0:07:07]} 22. Qxc4+ {[%emt 0:00:27]} Rxc4 {[%emt 0:00:02]} 23. Nxd3 {[%emt 0:00:52]} Rd8 {[%emt 0:02:00]} 24. Nxb4 {[%emt 0:01:41]} Rxb4 {[%emt 0:00:06]} 25. fxe5 {[%emt 0:00:16]} fxe5 {[%emt 0:00:17]} 26. Bh3 {[%emt 0:04:22]} Rxd1 {[%emt 0:00:58]} 27. Be6+ {[%emt 0:00:04]} Kh8 {[%emt 0:00:07]} 28. Rxd1 {[%emt 0:00:03]} Rb6 {[%emt 0:07:25]} 29. Bc8 {[%emt 0:00:37]} Rd6 {[%emt 0:01:38]} 30. Rxd6 {[%emt 0:00:17]} Bxd6 {[%emt 0:00:02]} 31. Bxb7 {[%emt 0:00:08]} Kg8 {[%emt 0:00:24]} 32. Kg2 {[%emt 0:01:15]} Kf7 {[%emt 0:00:07]} 33. h4 {[%emt 0:00:16]} Bb4 {[%emt 0:00:12]} 34. Kf3 {[%emt 0:00:22]} Kf6 {[%emt 0:01:07]} 35. g4 {[%emt 0:00:20]} h6 {[%emt 0:00:05]} 36. Bc8 {[%emt 0:00:35]} Be1 {[%emt 0:00:12]} 37. h5 {[%emt 0:00:04]} a5 {[%emt 0:00:25]} 1/2-1/2

[Event "ESP chT Honor Division 2019"]
[Site "Melilla"]
[Date "2019.10.05"]
[Round "6.23"]
[White "Osmak, Iulija"]
[Black "Ibarra Jerez, Jose Carlos"]
[Result "1/2-1/2"]
[ECO "D51"]
[WhiteElo "2409"]
[BlackElo "2538"]
[Annotator "ChessBase"]
[PlyCount "60"]
[EventDate "2019.09.30"]
[EventType "team-tourn"]
[EventCountry "ESP"]
[SourceTitle "playchess.com"]
[Source "ChessBase"]
[SourceQuality "1"]
[TimeControl "40/5400+30:1800+30"]

1. d4 {[%emt 0:00:00]} d5 {[%emt 0:00:20]} 2. c4 {[%emt 0:00:00]} e6 {[%emt 0:00:34]} 3. Nc3 {[%emt 0:00:00]} Nf6 {[%emt 0:01:11]} 4. Bg5 {[%emt 0:00:04]} Nbd7 {[%emt 0:03:01]} 5. cxd5 {[%emt 0:03:45]} exd5 {[%emt 0:00:19]} 6. e3 {[%emt 0:00:12]} c6 {[%emt 0:00:15]} 7. Bd3 {[%emt 0:01:37]} Be7 {[%emt 0:00:43]} 8. Nge2 {[%emt 0:02:36]} Nh5 {[%emt 0:01:53]} 9. Bxe7 {[%emt 0:00:34]} Qxe7 {[%emt 0:00:12]} 10. O-O {[%emt 0:03:16]} O-O {[%emt 0:02:02]} 11. Qb1 {[%emt 0:04:19]} g6 {[%emt 0:01:44]} 12. b4 {[%emt 0:00:35]} Nb6 {[%emt 0:16:34]} 13. b5 {[%emt 0:05:50]} Ng7 {[%emt 0:04:21]} 14. bxc6 {[%emt 0:09:32]} bxc6 {[%emt 0:00:55]} 15. Qc2 {[%emt 0:03:35]} Bf5 {[%emt 0:02:45]} 16. Nf4 Rfe8 {[%emt 0:06:54]} 17. Rab1 {[%emt 0:09:34]} Rac8 {[%emt 0:04:14]} 18. Na4 {[%emt 0:02:34]} Nc4 {[%emt 0:03:52]} 19. Rb3 {[%emt 0:00:51]} Bxd3 {[%emt 0:02:50]} 20. Nxd3 {[%emt 0:09:07]} Nf5 {[%emt 0:01:52]} 21. Nac5 {[%emt 0:02:11]} Qg5 {[%emt 0:06:18]} 22. Ne5 {[%emt 0:08:48]} Nxe5 {[%emt 0:08:15]} 23. dxe5 {[%emt 0:02:27]} Qe7 {[%emt 0:02:54]} 24. f4 {[%emt 0:01:00]} d4 {[%emt 0:01:58]} 25. Ne4 {[%emt 0:07:15]} Nxe3 {[%emt 0:00:36]} 26. Rxe3 {[%emt 0:00:10]} dxe3 {[%emt 0:00:07]} 27. Nf6+ {[%emt 0:00:17]} Kg7 {[%emt 0:01:53]} 28. Nxe8+ {[%emt 0:00:06]} Qxe8 {[%emt 0:05:07]} 29. Re1 {[%emt 0:04:31]} c5 {[%emt 0:02:21]} 30. Rxe3 {[%emt 0:00:11]} Qe6 {[%emt 0:00:23]} 1/2-1/2

[Event "ESP chT Honor Division 2019"]
[Site "Melilla"]
[Date "2019.10.06"]
[Round "7.2"]
[White "Idani, Pouya"]
[Black "Anton Guijarro, David"]
[Result "1/2-1/2"]
[ECO "C45"]
[WhiteElo "2568"]
[BlackElo "2674"]
[Annotator "ChessBase"]
[PlyCount "47"]
[EventDate "2019.09.30"]
[EventType "team-tourn"]
[EventCountry "ESP"]
[SourceTitle "playchess.com"]
[Source "ChessBase"]
[SourceQuality "1"]
[TimeControl "40/5400+30:1800+30"]

1. e4 {[%emt 0:00:00]} e5 {[%emt 0:00:00]} 2. Nf3 {[%emt 0:00:00]} Nc6 {[%emt 0:00:00]} 3. d4 {[%emt 0:00:00]} exd4 {[%emt 0:00:00]} 4. Nxd4 {[%emt 0:00:00]} Nf6 {[%emt 0:00:00]} 5. Nxc6 {[%emt 0:00:00]} bxc6 {[%emt 0:00:05]} 6. e5 {[%emt 0:00:00]} Qe7 {[%emt 0:00:21]} 7. Qe2 {[%emt 0:00:00]} Nd5 {[%emt 0:00:09]} 8. c4 {[%emt 0:00:00]} Ba6 {[%emt 0:00:22]} 9. b3 {[%emt 0:00:01]} g6 {[%emt 0:00:35]} 10. Ba3 {[%emt 0:00:05]} Nb4 {[%emt 0:00:44]} 11. Bb2 {[%emt 0:00:06]} Bg7 {[%emt 0:00:10]} 12. a3 {[%emt 0:00:05]} Nd5 {[%emt 0:00:05]} 13. Nd2 {[%emt 0:00:03]} O-O {[%emt 0:00:47]} 14. O-O-O {[%emt 0:00:04]} Rfe8 {[%emt 0:00:51]} 15. Qf3 {[%emt 0:00:08]} Nb6 {[%emt 0:00:59]} 16. Ne4 {[%emt 0:00:04]} Bxe5 {[%emt 0:00:56]} 17. Bxe5 {[%emt 0:00:06]} Qxe5 {[%emt 0:00:05]} 18. Nf6+ {[%emt 0:00:04]} Kf8 {[%emt 0:01:05]} 19. Nxe8 {[%emt 0:00:06]} Qa1+ {[%emt 0:01:01]} 20. Kc2 {[%emt 0:00:04]} Qa2+ {[%emt 0:00:03]} 21. Kc1 {[%emt 0:00:05]} Qa1+ {[%emt 0:00:33]} 22. Kc2 {[%emt 0:00:04]} Qa2+ {[%emt 0:00:02]} 23. Kc1 {[%emt 0:00:04]} Qa1+ {[%emt 0:00:04]} 24. Kc2 1/2-1/2

[Event "ESP chT Honor Division 2019"]
[Site "Melilla"]
[Date "2019.10.06"]
[Round "7.4"]
[White "Suarez Real, Alberto"]
[Black "Lopez Martinez, Josep Manuel"]
[Result "0-1"]
[ECO "B96"]
[WhiteElo "2460"]
[BlackElo "2573"]
[Annotator "ChessBase"]
[PlyCount "74"]
[EventDate "2019.09.30"]
[EventType "team-tourn"]
[EventCountry "ESP"]
[SourceTitle "playchess.com"]
[Source "ChessBase"]
[SourceQuality "1"]
[TimeControl "40/5400+30:1800+30"]

1. e4 {[%emt 0:00:00]} c5 {[%emt 0:00:12]} 2. Nf3 {[%emt 0:00:00]} d6 {[%emt 0:00:13]} 3. d4 {[%emt 0:00:24]} cxd4 {[%emt 0:00:14]} 4. Nxd4 {[%emt 0:00:04]} Nf6 {[%emt 0:00:26]} 5. Nc3 {[%emt 0:00:06]} a6 {[%emt 0:00:25]} 6. Bg5 {[%emt 0:00:45]} e6 {[%emt 0:01:25]} 7. f4 {[%emt 0:01:12]} h6 {[%emt 0:01:18]} 8. Bh4 {[%emt 0:00:29]} Qb6 {[%emt 0:00:33]} 9. a3 {[%emt 0:01:03]} Nbd7 {[%emt 0:02:20]} 10. Bf2 {[%emt 0:02:08]} Qa5 {[%emt 0:06:36]} 11. Qe2 {[%emt 0:11:05]} e5 {[%emt 0:04:50]} 12. Nb3 {[%emt 0:10:09]} Qc7 {[%emt 0:00:21]} 13. f5 {[%emt 0:20:04]} b5 {[%emt 0:09:15]} 14. g4 {[%emt 0:11:26]} Bb7 {[%emt 0:07:25]} 15. O-O-O {[%emt 0:06:04]} Rc8 {[%emt 0:01:23]} 16. Bg2 {[%emt 0:05:37]} Nb6 {[%emt 0:02:32]} 17. Na5 {[%emt 0:05:10]} Ba8 {[%emt 0:01:55]} 18. Kb1 {[%emt 0:02:11]} Be7 {[%emt 0:01:29]} 19. Bf3 {[%emt 0:06:07]} Nc4 {[%emt 0:12:02]} 20. Nxc4 {[%emt 0:00:35]} Qxc4 {[%emt 0:00:14]} 21. Rd3 {[%emt 0:02:48]} Rb8 {[%emt 0:09:46]} 22. b3 {[%emt 0:04:24]} Qc7 {[%emt 0:00:15]} 23. h4 {[%emt 0:01:26]} b4 {[%emt 0:02:07]} 24. axb4 {[%emt 0:00:45]} Rxb4 {[%emt 0:00:18]} 25. g5 {[%emt 0:00:40]} Nd7 {[%emt 0:00:20]} 26. Nd5 {[%emt 0:04:25]} Bxd5 {[%emt 0:01:43]} 27. Rxd5 {[%emt 0:00:03]} hxg5 {[%emt 0:02:49]} 28. hxg5 {[%emt 0:00:07]} Rxh1+ {[%emt 0:00:17]} 29. Bxh1 {[%emt 0:00:02]} Bxg5 {[%emt 0:01:07]} 30. Qxa6 {[%emt 0:02:21]} Rxb3+ {[%emt 0:01:00]} 31. cxb3 {[%emt 0:00:29]} Qc1+ {[%emt 0:00:06]} 32. Ka2 {[%emt 0:00:03]} Qc2+ {[%emt 0:00:25]} 33. Ka1 {[%emt 0:00:28]} Bd2 {[%emt 0:01:51]} 34. Rxd2 {[%emt 0:01:31]} Qc1+ {[%emt 0:00:06]} 35. Ka2 {[%emt 0:00:10]} Qxd2+ {[%emt 0:00:05]} 36. Ka3 {[%emt 0:00:46]} Qxf2 {[%emt 0:00:46]} 37. Qxd6 {[%emt 0:00:04]} Qf1 {[%emt 0:00:33]} 0-1